[Event "Late-Titled-Tuesday-Blitz-June-25-2024"]
[Site "Chess.com"]
[Date "2024.06.25"]
[Round "9"]
[White "Akhayan"]
[Black "zverr1"]
[Result "1/2-1/2"]
[WhiteElo "2403"]
[BlackElo "2551"]
[TimeControl "180+1"]
[EndTime "15:46:08 PDT"]
[Termination "Game drawn by repetition"]

1. e4 {[%clk 0:03:00.9]} 1... c5 {[%clk 0:02:57.4]} 2. Nf3 {[%clk 0:03:00.5]}
2... Nc6 {[%clk 0:02:55.6]} 3. Nc3 {[%clk 0:03:00.1]} 3... g6 {[%clk 0:02:55.7]}
4. Bc4 {[%clk 0:02:59.8]} 4... Bg7 {[%clk 0:02:55.6]} 5. O-O {[%clk 0:03:00.4]}
5... e5 {[%clk 0:02:55.2]} 6. d3 {[%clk 0:02:59.7]} 6... Nge7 {[%clk 0:02:55.6]}
7. Ng5 {[%clk 0:02:53.9]} 7... O-O {[%clk 0:02:50.8]} 8. f4 {[%clk 0:02:54.4]}
8... h6 {[%clk 0:02:46.3]} 9. Nf3 {[%clk 0:02:02]} 9... d6 {[%clk 0:02:39.7]}
10. fxe5 {[%clk 0:01:57.8]} 10... Nxe5 {[%clk 0:02:33.5]} 11. Nxe5 {[%clk
0:01:57.3]} 11... dxe5 {[%clk 0:02:30.5]} 12. Qf3 {[%clk 0:01:48.4]} 12... Kh7
{[%clk 0:02:22.9]} 13. Be3 {[%clk 0:01:19.3]} 13... b6 {[%clk 0:02:14.4]} 14.
Nd5 {[%clk 0:01:18.5]} 14... Nxd5 {[%clk 0:02:02.5]} 15. Bxd5 {[%clk 0:01:18.6]}
15... Rb8 {[%clk 0:02:03.2]} 16. Qg3 {[%clk 0:01:18.9]} 16... Qe7 {[%clk
0:01:58.3]} 17. Rf2 {[%clk 0:01:09.7]} 17... Be6 {[%clk 0:01:46.5]} 18. Bxe6
{[%clk 0:01:09]} 18... Qxe6 {[%clk 0:01:45.8]} 19. b3 {[%clk 0:01:02.9]} 19...
f5 {[%clk 0:01:44.3]} 20. exf5 {[%clk 0:01:02.2]} 20... gxf5 {[%clk 0:01:45.2]}
21. Qh3 {[%clk 0:01:02.1]} 21... Qg6 {[%clk 0:01:37]} 22. Raf1 {[%clk
0:01:00.9]} 22... Rbe8 {[%clk 0:01:15.8]} 23. Bc1 {[%clk 0:00:58.9]} 23... e4
{[%clk 0:00:48.4]} 24. dxe4 {[%clk 0:00:58.7]} 24... Bd4 {[%clk 0:00:44.8]} 25.
Be3 {[%clk 0:00:57.2]} 25... Bxe3 {[%clk 0:00:17.6]} 26. Qxe3 {[%clk 0:00:57.2]}
26... Rxe4 {[%clk 0:00:12.6]} 27. Qxe4 {[%clk 0:00:43.7]} 27... fxe4 {[%clk
0:00:13.5]} 28. Rxf8 {[%clk 0:00:43.6]} 28... Kg7 {[%clk 0:00:13.9]} 29. R8f2
{[%clk 0:00:32.2]} 29... e3 {[%clk 0:00:07.2]} 30. Re2 {[%clk 0:00:31.9]} 30...
Qe4 {[%clk 0:00:06.4]} 31. Rfe1 {[%clk 0:00:32]} 31... a5 {[%clk 0:00:04.4]} 32.
c4 {[%clk 0:00:31.6]} 32... Qd4 {[%clk 0:00:02.9]} 33. Rxe3 {[%clk 0:00:29.2]}
33... a4 {[%clk 0:00:03.6]} 34. h3 {[%clk 0:00:26.2]} 34... a3 {[%clk 0:00:04]}
35. Kh1 {[%clk 0:00:23.5]} 35... Qd2 {[%clk 0:00:03.9]} 36. R3e2 {[%clk
0:00:23.7]} 36... Qd4 {[%clk 0:00:04.1]} 37. Kh2 {[%clk 0:00:22.5]} 37... Qf4+
{[%clk 0:00:03.5]} 38. Kh1 {[%clk 0:00:22.7]} 38... h5 {[%clk 0:00:04.2]} 39.
Re7+ {[%clk 0:00:21.1]} 39... Kg6 {[%clk 0:00:02.9]} 40. R7e6+ {[%clk
0:00:21.1]} 40... Kg7 {[%clk 0:00:03]} 41. R6e4 {[%clk 0:00:20.2]} 41... Qd2
{[%clk 0:00:03.3]} 42. R4e2 {[%clk 0:00:20.4]} 42... Qf4 {[%clk 0:00:04]} 43.
Kg1 {[%clk 0:00:19.8]} 43... Qd4+ {[%clk 0:00:04.1]} 44. Kh2 {[%clk 0:00:19.6]}
44... Qf4+ {[%clk 0:00:04.9]} 45. Kh1 {[%clk 0:00:19.7]} 45... Qd4 {[%clk
0:00:02.9]} 46. Rf1 {[%clk 0:00:17.2]} 46... Qd3 {[%clk 0:00:02.4]} 47. Ref2
{[%clk 0:00:17.5]} 47... Kg8 {[%clk 0:00:02.1]} 48. Rf8+ {[%clk 0:00:17.2]}
48... Kg7 {[%clk 0:00:02.2]} 49. R8f3 {[%clk 0:00:17.8]} 49... Qd4 {[%clk
0:00:01.7]} 50. Rg3+ {[%clk 0:00:16]} 50... Kh7 {[%clk 0:00:02.3]} 51. Rgf3
{[%clk 0:00:14.6]} 51... Kg7 {[%clk 0:00:02.3]} 52. Rf7+ {[%clk 0:00:14.5]}
52... Kg6 {[%clk 0:00:02.6]} 53. R7f2 {[%clk 0:00:14]} 53... Qc3 {[%clk
0:00:02.5]} 54. Re2 {[%clk 0:00:12.9]} 54... Qd3 {[%clk 0:00:02.7]} 55. Rfe1
{[%clk 0:00:13.2]} 55... Qc3 {[%clk 0:00:02.8]} 56. Re3 {[%clk 0:00:13.1]} 56...
Qd4 {[%clk 0:00:02.9]} 57. Re6+ {[%clk 0:00:12.9]} 57... Kg7 {[%clk 0:00:03.4]}
58. Re7+ {[%clk 0:00:12.9]} 58... Kg6 {[%clk 0:00:03.3]} 59. R7e2 {[%clk
0:00:10.5]} 59... Qc3 {[%clk 0:00:03.4]} 60. h4 {[%clk 0:00:08.5]} 60... Qd4
{[%clk 0:00:03.4]} 61. Re4 {[%clk 0:00:08]} 61... Qb2 {[%clk 0:00:04.1]} 62.
R1e2 {[%clk 0:00:08.5]} 62... Qc1+ {[%clk 0:00:03.4]} 63. Kh2 {[%clk 0:00:09.1]}
63... Qa1 {[%clk 0:00:02.4]} 64. R4e3 {[%clk 0:00:09.1]} 64... Kf6 {[%clk
0:00:02.4]} 65. Rf3+ {[%clk 0:00:09.1]} 65... Kg6 {[%clk 0:00:02.7]} 66. Re6+
{[%clk 0:00:09]} 66... Kg7 {[%clk 0:00:03.3]} 67. Re7+ {[%clk 0:00:08.9]} 67...
Kg6 {[%clk 0:00:03.6]} 68. Re8 {[%clk 0:00:07.3]} 68... Qxa2 {[%clk 0:00:03.1]}
69. Rg8+ {[%clk 0:00:06.9]} 69... Kh7 {[%clk 0:00:03.1]} 70. Rg5 {[%clk
0:00:05.5]} 70... Qe2 {[%clk 0:00:02.9]} 71. Rf7+ {[%clk 0:00:03.3]} 71... Kh6
{[%clk 0:00:02.9]} 72. Rf6+ {[%clk 0:00:03.4]} 72... Kh7 {[%clk 0:00:03.5]} 73.
Rf7+ {[%clk 0:00:03]} 73... Kh8 {[%clk 0:00:04.1]} 74. Rf8+ {[%clk 0:00:02.7]}
74... Kh7 {[%clk 0:00:04.4]} 75. Rf7+ {[%clk 0:00:03.1]} 1/2-1/2

[Event "Late-Titled-Tuesday-Blitz-June-25-2024"]
[Site "Chess.com"]
[Date "2024.06.25"]
[Round "9"]
[White "BardArtem"]
[Black "ManMish2"]
[Result "1/2-1/2"]
[WhiteElo "2821"]
[BlackElo "2654"]
[TimeControl "180+1"]
[EndTime "15:46:12 PDT"]
[Termination "Game drawn by repetition"]

1. e4 {[%clk 0:03:00.9]} 1... e5 {[%clk 0:02:59.7]} 2. Nf3 {[%clk 0:03:00.6]}
2... Nc6 {[%clk 0:02:59.9]} 3. Nc3 {[%clk 0:03:01.1]} 3... Nf6 {[%clk
0:02:59.4]} 4. a4 {[%clk 0:03:01.6]} 4... d5 {[%clk 0:02:53.8]} 5. Bb5 {[%clk
0:03:00.5]} 5... d4 {[%clk 0:02:49]} 6. Ne2 {[%clk 0:03:00.4]} 6... Bd6 {[%clk
0:02:48.4]} 7. Bxc6+ {[%clk 0:03:00.9]} 7... bxc6 {[%clk 0:02:47.8]} 8. d3
{[%clk 0:03:01.6]} 8... c5 {[%clk 0:02:46.1]} 9. b3 {[%clk 0:03:00.5]} 9... O-O
{[%clk 0:02:40.9]} 10. O-O {[%clk 0:03:00.6]} 10... Bg4 {[%clk 0:02:24.2]} 11.
Ng3 {[%clk 0:02:59.7]} 11... Nh5 {[%clk 0:02:20.9]} 12. h3 {[%clk 0:02:41.8]}
12... Nxg3 {[%clk 0:02:20]} 13. fxg3 {[%clk 0:02:42.7]} 13... Bd7 {[%clk
0:01:50.9]} 14. g4 {[%clk 0:02:38]} 14... f6 {[%clk 0:01:43]} 15. Ba3 {[%clk
0:02:22.8]} 15... Qe7 {[%clk 0:01:40.3]} 16. Qe1 {[%clk 0:02:16.1]} 16... g6
{[%clk 0:01:30.9]} 17. Nd2 {[%clk 0:02:05.8]} 17... Kh8 {[%clk 0:01:04.9]} 18.
Nc4 {[%clk 0:02:00.3]} 18... f5 {[%clk 0:00:49.2]} 19. exf5 {[%clk 0:01:49.8]}
19... gxf5 {[%clk 0:00:50.1]} 20. gxf5 {[%clk 0:01:50.4]} 20... Bxf5 {[%clk
0:00:49.7]} 21. Nd2 {[%clk 0:01:39.9]} 21... Be6 {[%clk 0:00:38.5]} 22. Ne4
{[%clk 0:01:32.6]} 22... Rg8 {[%clk 0:00:24.6]} 23. Rf3 {[%clk 0:01:12.4]} 23...
Bd5 {[%clk 0:00:19.9]} 24. Qf2 {[%clk 0:01:07.9]} 24... Qg7 {[%clk 0:00:12.5]}
25. Rf1 {[%clk 0:00:50]} 25... Raf8 {[%clk 0:00:09.1]} 26. Qe2 {[%clk
0:00:34.5]} 26... Rxf3 {[%clk 0:00:08.5]} 27. Rxf3 {[%clk 0:00:34.9]} 27... h6
{[%clk 0:00:07.6]} 28. Rg3 {[%clk 0:00:29.8]} 28... Qxg3 {[%clk 0:00:05.2]} 29.
Nxg3 {[%clk 0:00:30.7]} 29... Rxg3 {[%clk 0:00:05.3]} 30. Qh5 {[%clk 0:00:21.6]}
30... Rxg2+ {[%clk 0:00:05.2]} 31. Kf1 {[%clk 0:00:22.3]} 31... Kg7 {[%clk
0:00:05.6]} 32. Bc1 {[%clk 0:00:10.5]} 32... Rxc2 {[%clk 0:00:04.6]} 33. Bxh6+
{[%clk 0:00:09.5]} 33... Kf6 {[%clk 0:00:04.9]} 34. Bg5+ {[%clk 0:00:07.4]}
34... Ke6 {[%clk 0:00:04.7]} 35. Qe8+ {[%clk 0:00:07.4]} 35... Kf5 {[%clk
0:00:04.7]} 36. h4 {[%clk 0:00:07.1]} 36... Bg2+ {[%clk 0:00:04.5]} 37. Kg1
{[%clk 0:00:06.4]} 37... Kg4 {[%clk 0:00:05.4]} 38. Qg8 {[%clk 0:00:03.8]} 38...
Kf3 {[%clk 0:00:05.3]} 39. Bh6 {[%clk 0:00:02.4]} 39... Re2 {[%clk 0:00:03.1]}
40. Qf7+ {[%clk 0:00:02.5]} 40... Kg3 {[%clk 0:00:03.3]} 41. Qg6+ {[%clk
0:00:03.1]} 41... Kh3 {[%clk 0:00:03.2]} 42. Qf5+ {[%clk 0:00:03.3]} 42... Kg3
{[%clk 0:00:03.8]} 43. Qg5+ {[%clk 0:00:03.5]} 43... Kh3 {[%clk 0:00:04.1]} 44.
Qf5+ {[%clk 0:00:04.1]} 44... Kg3 {[%clk 0:00:03.7]} 45. Qg5+ {[%clk 0:00:02.8]}
45... Kh3 {[%clk 0:00:04.1]} 46. h5 {[%clk 0:00:01.8]} 46... Re1+ {[%clk
0:00:03.8]} 47. Kf2 {[%clk 0:00:02.1]} 47... Rf1+ {[%clk 0:00:04.7]} 48. Ke2
{[%clk 0:00:02.7]} 48... Rf4 {[%clk 0:00:05.4]} 49. Qg6 {[%clk 0:00:01.7]} 49...
Bf3+ {[%clk 0:00:06]} 50. Kd2 {[%clk 0:00:01.9]} 50... Rg4 {[%clk 0:00:06]} 51.
Qe6 {[%clk 0:00:02.1]} 51... Kg2 {[%clk 0:00:05.5]} 52. Kc1 {[%clk 0:00:02.5]}
52... e4 {[%clk 0:00:05.6]} 53. dxe4 {[%clk 0:00:01.9]} 53... Rxe4 {[%clk
0:00:06.5]} 54. Qg6+ {[%clk 0:00:01.9]} 54... Kf1 {[%clk 0:00:07]} 55. Bd2
{[%clk 0:00:01.4]} 55... Ke2 {[%clk 0:00:07.5]} 56. h6 {[%clk 0:00:01.5]} 56...
Bf4 {[%clk 0:00:07.7]} 57. Bxf4 {[%clk 0:00:01.2]} 57... Rxf4 {[%clk 0:00:08.6]}
58. h7 {[%clk 0:00:01.9]} 58... d3 {[%clk 0:00:09.1]} 59. Kb2 {[%clk 0:00:01.4]}
59... d2 {[%clk 0:00:09.1]} 60. Qe6+ {[%clk 0:00:02]} 60... Re4 {[%clk 0:00:09]}
61. Qd5 {[%clk 0:00:01.5]} 61... d1=Q {[%clk 0:00:08.9]} 62. Qxd1+ {[%clk
0:00:02.4]} 62... Kxd1 {[%clk 0:00:09.2]} 63. h8=Q {[%clk 0:00:03.3]} 63... Re2+
{[%clk 0:00:09.7]} 64. Ka3 {[%clk 0:00:03.3]} 64... Re3 {[%clk 0:00:09.4]} 65.
Qa1+ {[%clk 0:00:03]} 65... Ke2 {[%clk 0:00:08.9]} 66. Qc1 {[%clk 0:00:02.2]}
66... Bd5 {[%clk 0:00:07.8]} 67. Qb2+ {[%clk 0:00:01.8]} 67... Ke1 {[%clk
0:00:07.2]} 68. Qc1+ {[%clk 0:00:02.1]} 68... Ke2 {[%clk 0:00:07.2]} 69. Qc2+
{[%clk 0:00:02.7]} 69... Ke1 {[%clk 0:00:06.8]} 70. Qc1+ {[%clk 0:00:02.9]}
70... Ke2 {[%clk 0:00:06.9]} 1/2-1/2

[Event "Late-Titled-Tuesday-Blitz-June-25-2024"]
[Site "Chess.com"]
[Date "2024.06.25"]
[Round "9"]
[White "Slovineanu"]
[Black "dennisodessa"]
[Result "1-0"]
[WhiteElo "2569"]
[BlackElo "2651"]
[TimeControl "180+1"]
[EndTime "15:46:25 PDT"]
[Termination "Slovineanu won by resignation"]

1. d4 {[%clk 0:02:57.7]} 1... Nf6 {[%clk 0:02:56.9]} 2. Nf3 {[%clk 0:02:57]}
2... e6 {[%clk 0:02:56.6]} 3. c4 {[%clk 0:02:56.5]} 3... Bb4+ {[%clk 0:02:56.9]}
4. Nbd2 {[%clk 0:02:55.9]} 4... b6 {[%clk 0:02:56.9]} 5. a3 {[%clk 0:02:56]}
5... Bxd2+ {[%clk 0:02:57.2]} 6. Qxd2 {[%clk 0:02:56.1]} 6... Bb7 {[%clk
0:02:58.1]} 7. e3 {[%clk 0:02:56.4]} 7... a5 {[%clk 0:02:58.5]} 8. b3 {[%clk
0:02:56.1]} 8... O-O {[%clk 0:02:58.7]} 9. Bb2 {[%clk 0:02:56]} 9... d6 {[%clk
0:02:59.6]} 10. Be2 {[%clk 0:02:54.8]} 10... Nbd7 {[%clk 0:03:00.5]} 11. O-O
{[%clk 0:02:54.9]} 11... Ne4 {[%clk 0:03:00.9]} 12. Qc2 {[%clk 0:02:54.2]} 12...
f5 {[%clk 0:03:01.8]} 13. Nd2 {[%clk 0:02:44.1]} 13... Nxd2 {[%clk 0:03:01.7]}
14. Qxd2 {[%clk 0:02:44.1]} 14... Qh4 {[%clk 0:03:02.6]} 15. f3 {[%clk
0:02:31.3]} 15... Rf6 {[%clk 0:02:48.8]} 16. Qe1 {[%clk 0:02:27.4]} 16... Qh6
{[%clk 0:02:44.8]} 17. Bd3 {[%clk 0:02:19.1]} 17... Rg6 {[%clk 0:02:43.8]} 18.
e4 {[%clk 0:02:11.2]} 18... fxe4 {[%clk 0:02:31.9]} 19. Bxe4 {[%clk 0:02:07.8]}
19... Bxe4 {[%clk 0:02:32]} 20. Qxe4 {[%clk 0:02:02.3]} 20... Rf8 {[%clk
0:02:30.3]} 21. Rf2 {[%clk 0:01:55.2]} 21... Qf4 {[%clk 0:02:03.5]} 22. Re1
{[%clk 0:01:51]} 22... Qxe4 {[%clk 0:01:40]} 23. Rxe4 {[%clk 0:01:49.5]} 23...
Rf5 {[%clk 0:01:39.9]} 24. g4 {[%clk 0:01:34.1]} 24... Rf8 {[%clk 0:01:33.3]}
25. Kg2 {[%clk 0:01:27.5]} 25... h5 {[%clk 0:01:26.3]} 26. h3 {[%clk 0:01:21]}
26... Rgf6 {[%clk 0:01:03.1]} 27. Re3 {[%clk 0:01:13]} 27... Re8 {[%clk
0:00:57.5]} 28. Rfe2 {[%clk 0:01:10.9]} 28... Kf7 {[%clk 0:00:54.8]} 29. Kg3
{[%clk 0:01:09]} 29... g5 {[%clk 0:00:53.2]} 30. Rf2 {[%clk 0:00:53.8]} 30...
h4+ {[%clk 0:00:50.4]} 31. Kg2 {[%clk 0:00:53.2]} 31... Nf8 {[%clk 0:00:51.2]}
32. Re4 {[%clk 0:00:47.4]} 32... Ng6 {[%clk 0:00:51.2]} 33. Bc1 {[%clk 0:00:48]}
33... Nf4+ {[%clk 0:00:46.5]} 34. Bxf4 {[%clk 0:00:47.4]} 34... Rxf4 {[%clk
0:00:43.7]} 35. Rxf4+ {[%clk 0:00:47]} 35... gxf4 {[%clk 0:00:44.6]} 36. Re2
{[%clk 0:00:46]} 36... Kf6 {[%clk 0:00:41.9]} 37. Kf2 {[%clk 0:00:42.3]} 37...
e5 {[%clk 0:00:31.2]} 38. dxe5+ {[%clk 0:00:35.8]} 38... Rxe5 {[%clk 0:00:32.1]}
39. Rxe5 {[%clk 0:00:31.7]} 39... Kxe5 {[%clk 0:00:33]} 40. Ke2 {[%clk
0:00:30.9]} 40... Kd4 {[%clk 0:00:33.2]} 41. Kd2 {[%clk 0:00:31.1]} 41... a4
{[%clk 0:00:32.5]} 42. g5 {[%clk 0:00:24.2]} 42... Ke5 {[%clk 0:00:21.3]} 43.
bxa4 {[%clk 0:00:24.6]} 43... Kf5 {[%clk 0:00:21.6]} 44. Kd3 {[%clk 0:00:21.6]}
44... Kxg5 {[%clk 0:00:22.1]} 45. Kd4 {[%clk 0:00:12.9]} 45... Kf5 {[%clk
0:00:02.7]} 46. Kd5 {[%clk 0:00:13]} 46... Kf6 {[%clk 0:00:02.9]} 47. Kc6 {[%clk
0:00:06.4]} 47... Ke5 {[%clk 0:00:03.7]} 48. Kxc7 {[%clk 0:00:06.7]} 48... Kd4
{[%clk 0:00:04]} 49. Kxb6 {[%clk 0:00:07.3]} 49... Kxc4 {[%clk 0:00:04.2]} 50.
a5 {[%clk 0:00:08]} 50... d5 {[%clk 0:00:04.5]} 51. a6 {[%clk 0:00:08.7]} 51...
d4 {[%clk 0:00:05.4]} 52. a7 {[%clk 0:00:09.4]} 52... d3 {[%clk 0:00:05.1]} 53.
a8=Q {[%clk 0:00:10]} 53... d2 {[%clk 0:00:06]} 54. Qd8 {[%clk 0:00:09.6]} 54...
Kc3 {[%clk 0:00:05.9]} 55. a4 {[%clk 0:00:09.8]} 55... Kc2 {[%clk 0:00:06.4]}
56. a5 {[%clk 0:00:10.1]} 56... d1=Q {[%clk 0:00:07.3]} 57. Qxd1+ {[%clk
0:00:10.2]} 57... Kxd1 {[%clk 0:00:08.1]} 58. a6 {[%clk 0:00:11]} 58... Ke2
{[%clk 0:00:09]} 59. a7 {[%clk 0:00:11.4]} 59... Kxf3 {[%clk 0:00:09.6]} 60.
a8=Q+ {[%clk 0:00:11.9]} 60... Kg3 {[%clk 0:00:10]} 61. Kc5 {[%clk 0:00:06.9]}
61... f3 {[%clk 0:00:08.9]} 62. Kd4 {[%clk 0:00:06.3]} 62... f2 {[%clk
0:00:08.7]} 63. Qg8+ {[%clk 0:00:06.4]} 63... Kh2 {[%clk 0:00:07.8]} 64. Qf7
{[%clk 0:00:06]} 64... Kg1 {[%clk 0:00:08]} 65. Qg6+ {[%clk 0:00:06.2]} 65...
Kh2 {[%clk 0:00:07.1]} 66. Qf6 {[%clk 0:00:05.8]} 66... Kg2 {[%clk 0:00:07.5]}
67. Qg5+ {[%clk 0:00:05.8]} 67... Kh2 {[%clk 0:00:06.3]} 68. Qf4+ {[%clk
0:00:05.5]} 68... Kg2 {[%clk 0:00:06.5]} 69. Qg4+ {[%clk 0:00:04.7]} 69... Kh2
{[%clk 0:00:06.7]} 70. Qf3 {[%clk 0:00:02.8]} 70... Kg1 {[%clk 0:00:06.8]} 71.
Ke4 {[%clk 0:00:02.3]} 71... f1=Q {[%clk 0:00:06.4]} 72. Qxf1+ {[%clk
0:00:02.9]} 72... Kxf1 {[%clk 0:00:07.3]} 73. Kf3 {[%clk 0:00:03.4]} 73... Ke1
{[%clk 0:00:06]} 74. Kg4 {[%clk 0:00:03.7]} 74... Ke2 {[%clk 0:00:06.3]} 75.
Kxh4 {[%clk 0:00:04.3]} 75... Ke3 {[%clk 0:00:07.2]} 76. Kg5 {[%clk 0:00:04.7]}
76... Ke4 {[%clk 0:00:08.1]} 77. h4 {[%clk 0:00:04.5]} 77... Ke5 {[%clk
0:00:08.6]} 78. Kg6 {[%clk 0:00:04.9]} 78... Ke6 {[%clk 0:00:08.5]} 79. Kg7
{[%clk 0:00:04.9]} 79... Ke7 {[%clk 0:00:09.4]} 80. h5 {[%clk 0:00:05.4]} 80...
Ke6 {[%clk 0:00:09.5]} 81. h6 {[%clk 0:00:06.3]} 1-0

[Event "Late-Titled-Tuesday-Blitz-June-25-2024"]
[Site "Chess.com"]
[Date "2024.06.25"]
[Round "9"]
[White "Chaubunagungamaug1"]
[Black "Statham_01"]
[Result "1/2-1/2"]
[WhiteElo "2583"]
[BlackElo "2700"]
[TimeControl "180+1"]
[EndTime "15:47:07 PDT"]
[Termination "Game drawn - insufficient material"]

1. d4 {[%clk 0:03:00.9]} 1... d5 {[%clk 0:03:00.1]} 2. c4 {[%clk 0:03:00.8]}
2... Nc6 {[%clk 0:03:00.7]} 3. Nf3 {[%clk 0:03:00.2]} 3... Bg4 {[%clk
0:03:00.4]} 4. Nc3 {[%clk 0:02:59.3]} 4... e6 {[%clk 0:02:55.9]} 5. Bg5 {[%clk
0:02:54.3]} 5... Be7 {[%clk 0:02:54.9]} 6. Bxe7 {[%clk 0:02:54.5]} 6... Ngxe7
{[%clk 0:02:55.8]} 7. e3 {[%clk 0:02:54.8]} 7... O-O {[%clk 0:02:55]} 8. Rc1
{[%clk 0:02:49.3]} 8... e5 {[%clk 0:02:45.7]} 9. cxd5 {[%clk 0:02:18.9]} 9...
Nxd5 {[%clk 0:02:41]} 10. dxe5 {[%clk 0:02:02.5]} 10... Bxf3 {[%clk 0:02:18.2]}
11. gxf3 {[%clk 0:01:23.5]} 11... Nxc3 {[%clk 0:02:16.3]} 12. Qxd8 {[%clk
0:01:15]} 12... Raxd8 {[%clk 0:02:16.1]} 13. Rxc3 {[%clk 0:01:15.7]} 13... Nxe5
{[%clk 0:02:15.1]} 14. Rxc7 {[%clk 0:01:07]} 14... Rc8 {[%clk 0:01:56.4]} 15.
Rxc8 {[%clk 0:00:56.5]} 15... Rxc8 {[%clk 0:01:57.3]} 16. f4 {[%clk 0:00:57.1]}
16... Nd3+ {[%clk 0:01:52.2]} 17. Kd2 {[%clk 0:00:35.1]} 17... Nxf2 {[%clk
0:01:45.4]} 18. Rg1 {[%clk 0:00:35.2]} 18... Ne4+ {[%clk 0:01:46]} 19. Kd3
{[%clk 0:00:34.1]} 19... Nc5+ {[%clk 0:01:46.4]} 20. Ke2 {[%clk 0:00:26.8]}
20... Kf8 {[%clk 0:01:44.2]} 21. Kf3 {[%clk 0:00:23.6]} 21... a5 {[%clk
0:01:39.2]} 22. Bc4 {[%clk 0:00:22.2]} 22... g6 {[%clk 0:01:25.9]} 23. Rd1
{[%clk 0:00:21.9]} 23... Ke7 {[%clk 0:01:25.4]} 24. b3 {[%clk 0:00:21.8]} 24...
a4 {[%clk 0:01:24.5]} 25. bxa4 {[%clk 0:00:20.3]} 25... Nxa4 {[%clk 0:01:25]}
26. Bb3 {[%clk 0:00:20]} 26... Nc5 {[%clk 0:01:22.3]} 27. Rb1 {[%clk 0:00:17.8]}
27... Rc7 {[%clk 0:01:18.2]} 28. Bd5 {[%clk 0:00:17.6]} 28... Kd6 {[%clk
0:01:17]} 29. Rd1 {[%clk 0:00:17]} 29... Ke7 {[%clk 0:01:15.1]} 30. Rb1 {[%clk
0:00:16.5]} 30... h5 {[%clk 0:01:13.7]} 31. e4 {[%clk 0:00:16.5]} 31... Kd6
{[%clk 0:01:01.9]} 32. Rb6+ {[%clk 0:00:16]} 32... Ke7 {[%clk 0:01:00.9]} 33. e5
{[%clk 0:00:15.8]} 33... Rd7 {[%clk 0:00:56.6]} 34. Bc4 {[%clk 0:00:11.9]} 34...
Rd4 {[%clk 0:00:55.6]} 35. Bb3 {[%clk 0:00:10.4]} 35... Rd3+ {[%clk 0:00:54.4]}
36. Ke2 {[%clk 0:00:09.8]} 36... Rh3 {[%clk 0:00:52.7]} 37. Rb5 {[%clk
0:00:09.1]} 37... Rxh2+ {[%clk 0:00:50.2]} 38. Ke3 {[%clk 0:00:09.1]} 38... Nxb3
{[%clk 0:00:40.2]} 39. Rxb7+ {[%clk 0:00:08.8]} 39... Ke6 {[%clk 0:00:40]} 40.
axb3 {[%clk 0:00:07.8]} 40... h4 {[%clk 0:00:37.6]} 41. Kf3 {[%clk 0:00:07.9]}
41... f5 {[%clk 0:00:29.7]} 42. Rb6+ {[%clk 0:00:06.6]} 42... Kd5 {[%clk
0:00:29.2]} 43. Rxg6 {[%clk 0:00:05.9]} 43... Rh3+ {[%clk 0:00:27.8]} 44. Kg2
{[%clk 0:00:06.4]} 44... Rxb3 {[%clk 0:00:26.3]} 45. Rh6 {[%clk 0:00:06.9]}
45... Rg3+ {[%clk 0:00:21.7]} 46. Kf2 {[%clk 0:00:07.1]} 46... Rg4 {[%clk
0:00:20.9]} 47. Kf3 {[%clk 0:00:06.9]} 47... Rg3+ {[%clk 0:00:08.8]} 48. Kf2
{[%clk 0:00:07.1]} 48... Rg4 {[%clk 0:00:05.1]} 49. Kf3 {[%clk 0:00:07.1]} 49...
Kc5 {[%clk 0:00:05.2]} 50. Rf6 {[%clk 0:00:06.1]} 50... Rg3+ {[%clk 0:00:05.7]}
51. Kf2 {[%clk 0:00:06.4]} 51... Kd5 {[%clk 0:00:05.7]} 52. Rxf5 {[%clk
0:00:06.7]} 52... Ke4 {[%clk 0:00:05.9]} 53. Rh5 {[%clk 0:00:05.5]} 53... Rf3+
{[%clk 0:00:06.4]} 54. Kg2 {[%clk 0:00:04.8]} 54... Rxf4 {[%clk 0:00:03.9]} 55.
e6 {[%clk 0:00:05.2]} 55... Rg4+ {[%clk 0:00:02.4]} 56. Kf2 {[%clk 0:00:04.6]}
56... Rg6 {[%clk 0:00:02.4]} 57. e7 {[%clk 0:00:03.8]} 57... Re6 {[%clk
0:00:02.6]} 58. Rxh4+ {[%clk 0:00:04]} 58... Kf5 {[%clk 0:00:03.2]} 59. Rh7
{[%clk 0:00:03.9]} 59... Kg6 {[%clk 0:00:03.4]} 60. Rh3 {[%clk 0:00:02.2]} 60...
Rxe7 {[%clk 0:00:03.6]} 61. Rg3+ {[%clk 0:00:03]} 61... Kf5 {[%clk 0:00:04.1]}
62. Rf3+ {[%clk 0:00:03.9]} 62... Kg4 {[%clk 0:00:04.7]} 63. Rg3+ {[%clk
0:00:04.4]} 63... Kh4 {[%clk 0:00:05.3]} 64. Rf3 {[%clk 0:00:05]} 64... Ra7
{[%clk 0:00:05.5]} 65. Re3 {[%clk 0:00:05.3]} 65... Ra2+ {[%clk 0:00:05.7]} 66.
Re2 {[%clk 0:00:05.9]} 66... Ra5 {[%clk 0:00:06.6]} 67. Re3 {[%clk 0:00:06.3]}
67... Rf5+ {[%clk 0:00:07.2]} 68. Rf3 {[%clk 0:00:06.9]} 68... Rd5 {[%clk
0:00:08]} 69. Re3 {[%clk 0:00:07.4]} 69... Kg4 {[%clk 0:00:08.4]} 70. Re4+
{[%clk 0:00:07.9]} 70... Kf5 {[%clk 0:00:08.6]} 71. Re3 {[%clk 0:00:08.8]} 71...
Rd4 {[%clk 0:00:08.3]} 72. Kf3 {[%clk 0:00:09]} 72... Rd2 {[%clk 0:00:07.8]} 73.
Re2 {[%clk 0:00:09]} 73... Rd3+ {[%clk 0:00:07.8]} 74. Re3 {[%clk 0:00:09.6]}
74... Rd4 {[%clk 0:00:08.3]} 75. Ra3 {[%clk 0:00:10.1]} 75... Rh4 {[%clk
0:00:08.3]} 76. Ra5+ {[%clk 0:00:10]} 76... Ke6 {[%clk 0:00:09]} 77. Ra6+ {[%clk
0:00:10.8]} 77... Kd5 {[%clk 0:00:09.5]} 78. Ra5+ {[%clk 0:00:11.5]} 78... Kc6
{[%clk 0:00:09.6]} 79. Ra6+ {[%clk 0:00:11.6]} 79... Kc5 {[%clk 0:00:09.6]} 80.
Rf6 {[%clk 0:00:12.5]} 80... Rh5 {[%clk 0:00:09.3]} 81. Kg4 {[%clk 0:00:12.3]}
81... Rh1 {[%clk 0:00:08.7]} 82. Rf5+ {[%clk 0:00:12.8]} 82... Kd4 {[%clk
0:00:09.3]} 83. Rf4+ {[%clk 0:00:13.5]} 83... Ke5 {[%clk 0:00:09.9]} 84. Rf5+
{[%clk 0:00:14]} 84... Ke6 {[%clk 0:00:10.5]} 85. Rf3 {[%clk 0:00:14.7]} 85...
Rh7 {[%clk 0:00:09.9]} 86. Re3+ {[%clk 0:00:15.1]} 86... Kf6 {[%clk 0:00:10.5]}
87. Rf3+ {[%clk 0:00:15.7]} 87... Kg6 {[%clk 0:00:10.8]} 88. Rf4 {[%clk
0:00:16.3]} 88... Re7 {[%clk 0:00:10.8]} 89. Kf3 {[%clk 0:00:16.7]} 89... Rd7
{[%clk 0:00:11]} 90. Rg4+ {[%clk 0:00:17.3]} 90... Kh5 {[%clk 0:00:10.6]} 91.
Rf4 {[%clk 0:00:18.2]} 91... Rd3+ {[%clk 0:00:10.7]} 92. Ke4 {[%clk 0:00:18.6]}
92... Ra3 {[%clk 0:00:11.6]} 93. Kf5 {[%clk 0:00:18.9]} 93... Ra5+ {[%clk
0:00:11.5]} 94. Kf6 {[%clk 0:00:19.6]} 94... Ra6+ {[%clk 0:00:11.5]} 95. Kf5
{[%clk 0:00:20.3]} 95... Rb6 {[%clk 0:00:11]} 96. Rf1 {[%clk 0:00:20.4]} 96...
Rb5+ {[%clk 0:00:10.4]} 97. Kf6 {[%clk 0:00:21]} 97... Kg4 {[%clk 0:00:09.7]}
98. Rg1+ {[%clk 0:00:21]} 98... Kf4 {[%clk 0:00:10.2]} 99. Rf1+ {[%clk
0:00:21.6]} 99... Ke4 {[%clk 0:00:10.8]} 100. Re1+ {[%clk 0:00:21.5]} 100... Kd4
{[%clk 0:00:11.4]} 101. Rd1+ {[%clk 0:00:22]} 101... Ke3 {[%clk 0:00:11.9]} 102.
Re1+ {[%clk 0:00:21.7]} 102... Kd2 {[%clk 0:00:12.5]} 103. Re5 {[%clk
0:00:22.6]} 103... Rb3 {[%clk 0:00:11.2]} 104. Rd5+ {[%clk 0:00:22.7]} 104...
Rd3 {[%clk 0:00:11]} 105. Ke5 {[%clk 0:00:20.2]} 105... Ke3 {[%clk 0:00:10.9]}
106. Rxd3+ {[%clk 0:00:19.5]} 106... Kxd3 {[%clk 0:00:09.1]} 1/2-1/2